[Event "84th ESP-ch 2019"]
[Site "Marbella"]
[Date "2019.11.24"]
[Round "9.28"]
[White "Garcia Romero, Benjamin Abel"]
[Black "Arroyo Rodriguez, Jesus"]
[Result "1-0"]
[ECO "C11"]
[WhiteElo "2234"]
[BlackElo "2112"]
[Annotator "NA"]
[PlyCount "37"]
[EventDate "2019.11.16"]
[EventType "swiss"]
[EventCountry "ESP"]
[SourceTitle "playchess.com"]
[Source "ChessBase"]
[SourceQuality "1"]
[TimeControl "5400+30"]

1. e4 {[%emt 0:00:00]} e6 {[%emt 0:03:44]} 2. d4 {[%emt 0:02:23]} d5 {[%emt 0:00:03]} 3. Nc3 {[%emt 0:01:20]} Nf6 {[%emt 0:00:07]} 4. Bg5 {[%emt 0:01:34]} dxe4 {[%emt 0:00:09]} 5. Nxe4 {[%emt 0:00:39]} Be7 {[%emt 0:00:07]} 6. Bxf6 {[%emt 0:01:25]} gxf6 {[%emt 0:00:03]} 7. Nf3 {[%emt 0:13:11]} b6 {[%emt 0:08:37]} 8. Bc4 {[%emt 0:05:26]} Bb7 {[%emt 0:03:03]} 9. Qe2 {[%emt 0:00:33]} O-O {[%emt 0:06:52]} 10. O-O-O {[%emt 0:03:05]} c6 {[%emt 0:04:36]} 11. h4 {[%emt 0:14:25]} Nd7 {[%emt 0:08:20]} 12. Kb1 {[%emt 0:04:54]} Kh8 {[%emt 0:06:08]} 13. Nfg5 {[%emt 0:00:53]} h6 {[%emt 0:15:32]} 14. Qh5 {[%emt 0:10:59]} Kg7 {[%emt 0:01:18]} 15. Nxf7 {[%emt 0:00:57]} Rxf7 {[%emt 0:03:10]} 16. Bxe6 {[%emt 0:00:11]} Rf8 {[%emt 0:02:54]} 17. Qg4+ {[%emt 0:01:39]} Kh8 {[%emt 0:00:17]} 18. Qg6 {[%emt 0:00:11]} c5 {[%emt 0:01:17]} 19. Qxh6# 1-0

[Event "84th ESP-ch 2019"]
[Site "Marbella"]
[Date "2019.11.24"]
[Round "9.29"]
[White "Carbonell Bofill, Carlos Eloy"]
[Black "Medarde Santiago, Luis Marcos"]
[Result "0-1"]
[ECO "A45"]
[WhiteElo "2098"]
[BlackElo "2285"]
[Annotator "NA"]
[PlyCount "76"]
[EventDate "2019.11.16"]
[EventType "swiss"]
[EventCountry "ESP"]
[SourceTitle "playchess.com"]
[Source "ChessBase"]
[SourceQuality "1"]
[TimeControl "5400+30"]

1. d4 {[%emt 0:00:00]} Nf6 {[%emt 0:09:53]} 2. g3 {[%emt 0:00:00]} c5 {[%emt 0:05:50]} 3. d5 {[%emt 0:00:26]} e6 {[%emt 0:01:52]} 4. c4 {[%emt 0:00:54]} exd5 {[%emt 0:00:05]} 5. cxd5 {[%emt 0:00:05]} d6 {[%emt 0:00:03]} 6. Nc3 {[%emt 0:00:23]} g6 {[%emt 0:00:10]} 7. Qa4+ {[%emt 0:07:50]} Nbd7 {[%emt 0:10:05]} 8. g4 {[%emt 0:00:39]} a6 {[%emt 0:13:08]} 9. g5 {[%emt 0:09:53]} Nh5 {[%emt 0:01:58]} 10. f4 {[%emt 0:00:14]} h6 {[%emt 0:04:27]} 11. f5 {[%emt 0:00:33]} hxg5 {[%emt 0:05:19]} 12. fxg6 {[%emt 0:02:29]} f5 {[%emt 0:07:40]} 13. Nf3 {[%emt 0:05:06]} Be7 {[%emt 0:00:55]} 14. h4 {[%emt 0:01:40]} gxh4 {[%emt 0:01:41]} 15. Nxh4 {[%emt 0:02:48]} b5 {[%emt 0:00:30]} 16. Nxb5 {[%emt 0:01:00]} axb5 {[%emt 0:03:14]} 17. Qxa8 {[%emt 0:01:14]} Bxh4+ {[%emt 0:00:15]} 18. Kd1 {[%emt 0:00:40]} Bf6 {[%emt 0:04:13]} 19. Bg5 {[%emt 0:01:56]} Bxg5 {[%emt 0:03:28]} 20. g7 {[%emt 0:00:07]} Rg8 {[%emt 0:02:16]} 21. Rxh5 {[%emt 0:00:02]} Kf7 {[%emt 0:00:34]} 22. Bh3 {[%emt 0:06:43]} Kg6 {[%emt 0:04:27]} 23. Rh8 {[%emt 0:02:24]} Rxh8 {[%emt 0:00:39]} 24. gxh8=R {[%emt 0:00:08]} Qxh8 {[%emt 0:00:11]} 25. Kc2 {[%emt 0:07:24]} Nb6 {[%emt 0:00:50]} 26. Qa5 {[%emt 0:05:23]} Nc4 {[%emt 0:00:39]} 27. Qxb5 {[%emt 0:00:01]} Na3+ {[%emt 0:02:49]} 28. bxa3 {[%emt 0:00:16]} Qxa1 {[%emt 0:00:02]} 29. Qe8+ {[%emt 0:01:36]} Kg7 {[%emt 0:00:29]} 30. Qxc8 {[%emt 0:00:51]} Qxa2+ {[%emt 0:03:44]} 31. Kc3 {[%emt 0:00:47]} Qxa3+ {[%emt 0:00:35]} 32. Kc2 {[%emt 0:00:50]} Qc1+ {[%emt 0:00:59]} 33. Kb3 {[%emt 0:00:40]} Qb1+ {[%emt 0:00:14]} 34. Kc3 {[%emt 0:00:26]} Qb4+ {[%emt 0:02:33]} 35. Kc2 {[%emt 0:00:07]} Qc4+ {[%emt 0:01:20]} 36. Kb2 {[%emt 0:00:25]} Bf6+ {[%emt 0:00:16]} 37. Kb1 {[%emt 0:00:37]} Qb3+ {[%emt 0:00:02]} 38. Kc1 {[%emt 0:00:17]} Bg5+ {[%emt 0:00:01]} 0-1

[Event "84th ESP-ch 2019"]
[Site "Marbella"]
[Date "2019.11.24"]
[Round "9.30"]
[White "Gutierrez Curras, Daniel"]
[Black "Hernandez Roldan, Miguel"]
[Result "0-1"]
[ECO "B23"]
[WhiteElo "2025"]
[BlackElo "2229"]
[Annotator "NA"]
[PlyCount "164"]
[EventDate "2019.11.16"]
[EventType "swiss"]
[EventCountry "ESP"]
[SourceTitle "playchess.com"]
[Source "ChessBase"]
[SourceQuality "1"]
[TimeControl "5400+30"]

1. e4 {[%emt 0:00:00]} c5 {[%emt 0:00:00]} 2. Nc3 {[%emt 0:00:00]} Nc6 {[%emt 0:00:33]} 3. f4 {[%emt 0:02:26]} g6 {[%emt 0:00:13]} 4. Nf3 {[%emt 0:00:46]} Bg7 {[%emt 0:00:05]} 5. Bb5 {[%emt 0:01:22]} Nd4 {[%emt 0:06:28]} 6. O-O {[%emt 0:01:00]} e6 {[%emt 0:00:48]} 7. Bc4 {[%emt 0:06:44]} d6 {[%emt 0:03:18]} 8. d3 {[%emt 0:00:52]} Ne7 {[%emt 0:00:32]} 9. a4 {[%emt 0:05:28]} O-O {[%emt 0:05:56]} 10. Ba2 {[%emt 0:08:05]} Kh8 {[%emt 0:06:42]} 11. Bd2 {[%emt 0:02:52]} Bd7 {[%emt 0:01:35]} 12. f5 {[%emt 0:03:13]} exf5 {[%emt 0:07:08]} 13. Bf4 {[%emt 0:03:36]} Be6 {[%emt 0:01:47]} 14. Nxd4 {[%emt 0:08:14]} Bxd4+ {[%emt 0:00:05]} 15. Kh1 {[%emt 0:00:11]} Be5 {[%emt 0:02:55]} 16. Bh6 {[%emt 0:02:17]} Re8 {[%emt 0:04:20]} 17. Bxe6 {[%emt 0:04:50]} fxe6 {[%emt 0:00:15]} 18. Rf3 {[%emt 0:00:11]} Ng8 {[%emt 0:02:24]} 19. Bd2 {[%emt 0:00:42]} Rf8 {[%emt 0:02:40]} 20. exf5 {[%emt 0:05:45]} gxf5 {[%emt 0:00:26]} 21. Rh3 {[%emt 0:00:27]} Qd7 {[%emt 0:01:36]} 22. Qf3 {[%emt 0:01:55]} Rab8 {[%emt 0:02:17]} 23. Re1 {[%emt 0:04:01]} Qg7 {[%emt 0:02:49]} 24. Nb5 {[%emt 0:02:16]} Qg4 {[%emt 0:08:47]} 25. b3 {[%emt 0:01:28]} a6 {[%emt 0:07:23]} 26. Nc3 {[%emt 0:03:30]} Qxf3 {[%emt 0:01:18]} 27. gxf3 {[%emt 0:00:10]} Rbe8 {[%emt 0:01:46]} 28. Nd1 {[%emt 0:02:21]} Bg7 {[%emt 0:01:19]} 29. a5 {[%emt 0:00:24]} Nf6 {[%emt 0:00:30]} 30. Rg1 {[%emt 0:01:24]} Rg8 {[%emt 0:01:44]} 31. b4 {[%emt 0:01:27]} Nd5 {[%emt 0:01:33]} 32. bxc5 {[%emt 0:00:22]} Bd4 {[%emt 0:00:04]} 33. Rf1 {[%emt 0:01:14]} Bxc5 {[%emt 0:04:25]} 34. c4 {[%emt 0:02:15]} Bb4 {[%emt 0:01:39]} 35. Bc1 {[%emt 0:00:11]} Nf6 {[%emt 0:00:27]} 36. Bb2 {[%emt 0:00:31]} Rg6 {[%emt 0:00:48]} 37. Rg3 {[%emt 0:00:14]} Kg7 {[%emt 0:00:07]} 38. Bc3 {[%emt 0:03:26]} Bxc3 {[%emt 0:01:29]} 39. Nxc3 {[%emt 0:00:07]} Nh5 {[%emt 0:00:03]} 40. Rxg6+ {[%emt 0:00:49]} hxg6 {[%emt 0:00:07]} 41. Rb1 {[%emt 0:00:04]} Re7 {[%emt 0:00:13]} 42. Rb6 {[%emt 0:00:27]} Rd7 {[%emt 0:00:07]} 43. Ne2 {[%emt 0:02:13]} Kf6 {[%emt 0:00:49]} 44. Kg2 {[%emt 0:00:32]} Ke7 {[%emt 0:00:53]} 45. Kf2 {[%emt 0:00:14]} Kd8 {[%emt 0:00:42]} 46. Ke3 {[%emt 0:01:14]} Kc7 {[%emt 0:00:09]} 47. Nd4 {[%emt 0:00:48]} Re7 {[%emt 0:01:45]} 48. Ne2 {[%emt 0:01:46]} e5 {[%emt 0:02:28]} 49. Nc3 {[%emt 0:00:44]} Nf4 {[%emt 0:00:10]} 50. Rb2 {[%emt 0:03:11]} Rh7 {[%emt 0:01:32]} 51. d4 {[%emt 0:00:20]} exd4+ {[%emt 0:00:28]} 52. Kxd4 {[%emt 0:00:14]} g5 {[%emt 0:03:00]} 53. Nd5+ {[%emt 0:01:21]} Nxd5 {[%emt 0:00:13]} 54. Kxd5 {[%emt 0:00:06]} Re7 {[%emt 0:00:56]} 55. Rg2 {[%emt 0:00:30]} Re5+ {[%emt 0:00:10]} 56. Kd4 {[%emt 0:00:11]} f4 {[%emt 0:00:14]} 57. Rg4 {[%emt 0:00:37]} Rxa5 {[%emt 0:00:40]} 58. h4 {[%emt 0:00:09]} gxh4 {[%emt 0:00:19]} 59. Rxh4 {[%emt 0:00:09]} Rf5 {[%emt 0:01:06]} 60. Ke4 {[%emt 0:00:28]} Rc5 {[%emt 0:00:24]} 61. Kd4 {[%emt 0:00:21]} b5 {[%emt 0:00:17]} 62. cxb5 {[%emt 0:00:35]} axb5 {[%emt 0:00:25]} 63. Rh7+ {[%emt 0:00:57]} Kc6 {[%emt 0:00:09]} 64. Ke4 {[%emt 0:02:08]} Rc4+ {[%emt 0:00:14]} 65. Kd3 {[%emt 0:00:06]} Ra4 {[%emt 0:01:40]} 66. Rf7 {[%emt 0:00:20]} Kc5 {[%emt 0:00:35]} 67. Kc2 {[%emt 0:02:49]} Rd4 {[%emt 0:00:18]} 68. Rf5+ {[%emt 0:00:45]} Kc4 {[%emt 0:00:04]} 69. Rf8 {[%emt 0:00:13]} b4 {[%emt 0:00:05]} 70. Rc8+ {[%emt 0:00:13]} Kd5 {[%emt 0:00:06]} 71. Rb8 {[%emt 0:00:56]} Rc4+ {[%emt 0:02:26]} 72. Kd3 {[%emt 0:01:03]} Rc3+ {[%emt 0:00:06]} 73. Kd2 {[%emt 0:00:31]} Rb3 {[%emt 0:01:21]} 74. Kc2 {[%emt 0:00:18]} Rxf3 {[%emt 0:00:12]} 75. Rxb4 {[%emt 0:00:08]} Ke5 {[%emt 0:00:04]} 76. Kd2 {[%emt 0:00:10]} Re3 {[%emt 0:00:06]} 77. Ra4 {[%emt 0:00:25]} d5 {[%emt 0:00:09]} 78. Rb4 {[%emt 0:01:17]} d4 {[%emt 0:00:44]} 79. Ra4 {[%emt 0:00:12]} f3 {[%emt 0:00:39]} 80. Ra8 {[%emt 0:01:01]} Rb3 {[%emt 0:02:51]} 81. Re8+ {[%emt 0:00:35]} Kf4 {[%emt 0:01:49]} 82. Ke1 {[%emt 0:01:45]} Rc3 0-1

[Event "84th ESP-ch 2019"]
[Site "Marbella"]
[Date "2019.11.24"]
[Round "9.31"]
[White "Medina Romero, Jose"]
[Black "Rodriguez Redondo, Adhara"]
[Result "0-1"]
[ECO "D31"]
[WhiteElo "2083"]
[BlackElo "2199"]
[Annotator "NA"]
[PlyCount "86"]
[EventDate "2019.11.16"]
[EventType "swiss"]
[EventCountry "ESP"]
[SourceTitle "playchess.com"]
[Source "ChessBase"]
[SourceQuality "1"]
[TimeControl "5400+30"]

1. d4 {[%emt 0:00:00]} d5 {[%emt 0:00:00]} 2. c4 {[%emt 0:00:00]} e6 {[%emt 0:00:00]} 3. Nc3 {[%emt 0:00:00]} Be7 {[%emt 0:00:00]} 4. cxd5 {[%emt 0:00:20]} exd5 {[%emt 0:00:00]} 5. Bf4 {[%emt 0:00:20]} c6 {[%emt 0:02:25]} 6. e3 {[%emt 0:00:09]} Bf5 {[%emt 0:01:38]} 7. Qb3 {[%emt 0:01:34]} Qb6 {[%emt 0:03:01]} 8. Qxb6 {[%emt 0:00:34]} axb6 {[%emt 0:00:07]} 9. Kd2 {[%emt 0:02:26]} Nd7 {[%emt 0:03:08]} 10. Bd3 {[%emt 0:00:16]} Bxd3 {[%emt 0:01:06]} 11. Kxd3 {[%emt 0:00:08]} b5 {[%emt 0:07:09]} 12. Nf3 {[%emt 0:06:39]} b4 {[%emt 0:02:40]} 13. Nb1 {[%emt 0:00:44]} Ngf6 {[%emt 0:02:29]} 14. Nbd2 {[%emt 0:00:50]} O-O {[%emt 0:02:25]} 15. Ne5 {[%emt 0:00:58]} Ra6 {[%emt 0:04:00]} 16. Bg5 {[%emt 0:07:36]} Bd6 {[%emt 0:06:35]} 17. Nxd7 {[%emt 0:05:22]} Nxd7 {[%emt 0:00:06]} 18. Nb3 {[%emt 0:01:09]} Rfa8 {[%emt 0:02:27]} 19. Nc1 {[%emt 0:00:16]} b6 {[%emt 0:04:29]} 20. b3 {[%emt 0:00:57]} c5 {[%emt 0:09:46]} 21. Rb1 {[%emt 0:05:02]} Ra3 {[%emt 0:04:26]} 22. f3 {[%emt 0:02:51]} c4+ {[%emt 0:03:02]} 23. Kd2 {[%emt 0:00:41]} b5 {[%emt 0:04:02]} 24. h3 {[%emt 0:02:56]} f6 {[%emt 0:04:54]} 25. Bh4 {[%emt 0:00:23]} Kf7 {[%emt 0:01:09]} 26. Re1 {[%emt 0:00:19]} g5 {[%emt 0:03:32]} 27. Bf2 {[%emt 0:00:14]} Rxa2+ {[%emt 0:01:09]} 28. Nxa2 {[%emt 0:01:03]} Rxa2+ {[%emt 0:00:06]} 29. Kd1 {[%emt 0:01:02]} Rxf2 {[%emt 0:00:09]} 30. Re2 {[%emt 0:00:21]} Rxe2 {[%emt 0:02:35]} 31. Kxe2 {[%emt 0:00:09]} Ke6 {[%emt 0:01:10]} 32. g4 {[%emt 0:02:50]} Nb8 {[%emt 0:04:03]} 33. Ra1 {[%emt 0:15:39]} Nc6 {[%emt 0:00:19]} 34. Ra6 {[%emt 0:00:18]} Kd7 {[%emt 0:04:59]} 35. Rb6 {[%emt 0:00:08]} Na5 {[%emt 0:01:35]} 36. Rxb5 {[%emt 0:00:10]} Nxb3 {[%emt 0:00:13]} 37. Rxd5 {[%emt 0:00:55]} Kc6 {[%emt 0:00:29]} 38. Rf5 {[%emt 0:00:27]} Be7 {[%emt 0:02:02]} 39. h4 {[%emt 0:00:47]} h6 {[%emt 0:01:23]} 40. hxg5 {[%emt 0:00:26]} hxg5 {[%emt 0:00:09]} 41. Kd1 {[%emt 0:02:02]} c3 {[%emt 0:03:38]} 42. f4 {[%emt 0:16:23]} gxf4 {[%emt 0:00:59]} 43. Kc2 {[%emt 0:00:06]} fxe3 {[%emt 0:02:16]} 0-1

[Event "84th ESP-ch 2019"]
[Site "Marbella"]
[Date "2019.11.24"]
[Round "9.32"]
[White "Represa Perez, Mireya"]
[Black "Jimenez Fernandez, Rebeca"]
[Result "1-0"]
[ECO "B31"]
[WhiteElo "2189"]
[BlackElo "2043"]
[Annotator "NA"]
[PlyCount "63"]
[EventDate "2019.11.16"]
[EventType "swiss"]
[EventCountry "ESP"]
[SourceTitle "playchess.com"]
[Source "ChessBase"]
[SourceQuality "1"]
[TimeControl "5400+30"]

1. e4 {[%emt 0:00:00]} c5 {[%emt 0:00:00]} 2. Nf3 {[%emt 0:00:00]} Nc6 {[%emt 0:00:00]} 3. Bb5 {[%emt 0:00:00]} g6 {[%emt 0:00:00]} 4. Bxc6 {[%emt 0:00:30]} bxc6 {[%emt 0:00:00]} 5. O-O {[%emt 0:00:15]} Bg7 {[%emt 0:00:01]} 6. Re1 {[%emt 0:00:07]} Nh6 {[%emt 0:01:05]} 7. c3 {[%emt 0:01:18]} O-O {[%emt 0:00:23]} 8. h3 {[%emt 0:02:02]} f6 {[%emt 0:05:20]} 9. d4 {[%emt 0:00:39]} cxd4 {[%emt 0:00:44]} 10. cxd4 {[%emt 0:00:11]} Nf7 {[%emt 0:00:28]} 11. Be3 {[%emt 0:04:13]} e5 {[%emt 0:02:29]} 12. Nc3 {[%emt 0:07:34]} d6 {[%emt 0:02:21]} 13. Qc2 {[%emt 0:01:25]} f5 {[%emt 0:03:03]} 14. dxe5 {[%emt 0:07:33]} Nxe5 {[%emt 0:00:53]} 15. Nxe5 {[%emt 0:01:24]} Bxe5 {[%emt 0:01:51]} 16. f4 {[%emt 0:04:23]} Bg7 {[%emt 0:01:18]} 17. Rad1 {[%emt 0:01:23]} Qh4 {[%emt 0:14:33]} 18. Re2 {[%emt 0:06:13]} Rd8 {[%emt 0:15:43]} 19. Red2 {[%emt 0:08:07]} fxe4 {[%emt 0:00:53]} 20. Nxe4 {[%emt 0:02:59]} Bf5 {[%emt 0:04:29]} 21. Qxc6 {[%emt 0:08:56]} Qe7 {[%emt 0:03:10]} 22. Qd5+ {[%emt 0:16:57]} Kf8 {[%emt 0:17:28]} 23. Ng5 {[%emt 0:03:27]} Qxe3+ {[%emt 0:03:47]} 24. Kh1 {[%emt 0:01:32]} Qe7 {[%emt 0:01:23]} 25. Nxh7+ {[%emt 0:02:28]} Ke8 {[%emt 0:00:05]} 26. Qg8+ {[%emt 0:02:18]} Bf8 {[%emt 0:03:13]} 27. Nxf8 {[%emt 0:02:51]} Qxf8 {[%emt 0:00:22]} 28. Re2+ {[%emt 0:00:30]} Kd7 {[%emt 0:00:30]} 29. Qh7+ {[%emt 0:00:06]} Kc6 {[%emt 0:01:20]} 30. Rc1+ {[%emt 0:00:06]} Kb5 {[%emt 0:02:42]} 31. Qb7+ {[%emt 0:00:10]} Ka5 {[%emt 0:00:49]} 32. b4+ {[%emt 0:00:12]} 1-0

[Event "84th ESP-ch 2019"]
[Site "Marbella"]
[Date "2019.11.24"]
[Round "9.33"]
[White "Garcia Vicente, Nieves"]
[Black "Lopez Guerrero, Jose Miguel"]
[Result "1-0"]
[ECO "E48"]
[WhiteElo "2175"]
[BlackElo "2085"]
[Annotator "NA"]
[PlyCount "121"]
[EventDate "2019.11.16"]
[EventType "swiss"]
[EventCountry "ESP"]
[SourceTitle "playchess.com"]
[Source "ChessBase"]
[SourceQuality "1"]
[TimeControl "5400+30"]

1. d4 {[%emt 0:00:00]} Nf6 {[%emt 0:00:00]} 2. c4 {[%emt 0:00:00]} e6 {[%emt 0:00:00]} 3. Nc3 {[%emt 0:00:28]} Bb4 {[%emt 0:00:00]} 4. e3 {[%emt 0:00:20]} O-O {[%emt 0:00:19]} 5. Bd3 {[%emt 0:00:32]} d5 {[%emt 0:00:29]} 6. Nf3 {[%emt 0:01:03]} a6 {[%emt 0:03:07]} 7. a3 {[%emt 0:04:06]} Bxc3+ {[%emt 0:00:41]} 8. bxc3 {[%emt 0:00:03]} dxc4 {[%emt 0:00:19]} 9. Bxc4 {[%emt 0:00:21]} b5 {[%emt 0:00:05]} 10. Be2 {[%emt 0:06:09]} Nbd7 {[%emt 0:00:40]} 11. a4 {[%emt 0:02:35]} bxa4 {[%emt 0:00:46]} 12. Qxa4 {[%emt 0:02:14]} a5 {[%emt 0:00:10]} 13. O-O {[%emt 0:04:44]} Bb7 {[%emt 0:00:54]} 14. Rd1 {[%emt 0:07:49]} c5 {[%emt 0:02:46]} 15. Ba3 {[%emt 0:03:25]} Qc7 {[%emt 0:00:10]} 16. Rac1 {[%emt 0:05:00]} Rfc8 {[%emt 0:01:16]} 17. h3 {[%emt 0:02:38]} h6 {[%emt 0:00:07]} 18. c4 {[%emt 0:04:43]} Bc6 {[%emt 0:02:49]} 19. Qc2 {[%emt 0:01:43]} Be4 {[%emt 0:00:06]} 20. Qa2 {[%emt 0:06:33]} Rab8 {[%emt 0:01:39]} 21. Rd2 {[%emt 0:06:07]} Rb7 {[%emt 0:03:48]} 22. Rb2 {[%emt 0:05:00]} Rcb8 {[%emt 0:00:29]} 23. dxc5 {[%emt 0:02:38]} Nxc5 {[%emt 0:01:03]} 24. Rb5 {[%emt 0:00:26]} Ncd7 {[%emt 0:07:10]} 25. Rd1 {[%emt 0:03:47]} Rxb5 {[%emt 0:02:55]} 26. cxb5 {[%emt 0:00:10]} Nd5 {[%emt 0:01:24]} 27. Qd2 {[%emt 0:02:37]} Nc3 {[%emt 0:02:18]} 28. Bd6 {[%emt 0:08:13]} Qc8 {[%emt 0:00:20]} 29. Bxb8 {[%emt 0:00:31]} Nxd1 {[%emt 0:00:56]} 30. Qxd1 {[%emt 0:00:18]} Nxb8 {[%emt 0:00:13]} 31. Qd4 {[%emt 0:10:59]} Bd5 {[%emt 0:02:39]} 32. Qb2 {[%emt 0:02:27]} Nd7 {[%emt 0:01:15]} 33. Nd2 {[%emt 0:01:02]} Qb7 {[%emt 0:04:31]} 34. Bf1 {[%emt 0:00:03]} Nc5 {[%emt 0:02:28]} 35. Nb1 {[%emt 0:00:38]} a4 {[%emt 0:00:42]} 36. Qb4 {[%emt 0:01:13]} Qb6 {[%emt 0:00:16]} 37. Nc3 {[%emt 0:01:55]} Bb3 {[%emt 0:00:11]} 38. Be2 {[%emt 0:00:51]} Na6 {[%emt 0:00:51]} 39. Nxa4 {[%emt 0:00:38]} Bxa4 {[%emt 0:02:12]} 40. Qxa4 {[%emt 0:00:03]} Nc7 {[%emt 0:00:42]} 41. Bc4 {[%emt 0:00:41]} g6 {[%emt 0:00:19]} 42. Qb3 {[%emt 0:00:53]} Kg7 {[%emt 0:00:07]} 43. Qb2+ {[%emt 0:00:42]} Kg8 {[%emt 0:00:13]} 44. Qd4 {[%emt 0:00:31]} Qxd4 {[%emt 0:00:36]} 45. exd4 {[%emt 0:00:01]} Na8 {[%emt 0:00:08]} 46. d5 {[%emt 0:01:04]} e5 {[%emt 0:00:15]} 47. d6 {[%emt 0:00:18]} Nb6 {[%emt 0:00:20]} 48. Bb3 {[%emt 0:00:28]} Kf8 {[%emt 0:00:20]} 49. Kf1 {[%emt 0:00:20]} Ke8 {[%emt 0:06:24]} 50. Ke2 {[%emt 0:00:03]} Nc8 {[%emt 0:00:28]} 51. Bxf7+ {[%emt 0:00:40]} Kd7 {[%emt 0:00:16]} 52. Bxg6 {[%emt 0:00:09]} Nxd6 {[%emt 0:00:11]} 53. Bd3 {[%emt 0:00:54]} Ke6 {[%emt 0:01:50]} 54. Ke3 {[%emt 0:00:04]} Kd5 {[%emt 0:00:12]} 55. f3 {[%emt 0:01:39]} Nc8 {[%emt 0:00:18]} 56. Be4+ {[%emt 0:00:39]} Kc5 {[%emt 0:00:06]} 57. Bc6 {[%emt 0:00:12]} Nd6 {[%emt 0:00:19]} 58. Kd3 {[%emt 0:00:39]} h5 {[%emt 0:00:21]} 59. g4 {[%emt 0:00:32]} hxg4 {[%emt 0:02:21]} 60. fxg4 {[%emt 0:00:14]} e4+ {[%emt 0:01:29]} 61. Ke3 {[%emt 0:00:39] Kd5 Kxe4+} 1-0

[Event "84th ESP-ch 2019"]
[Site "Marbella"]
[Date "2019.11.24"]
[Round "9.34"]
[White "Ramirez Diaz, Jose Ramon"]
[Black "Sosa Suarez, Carla Cristina"]
[Result "0-1"]
[ECO "C00"]
[WhiteElo "2171"]
[BlackElo "2022"]
[Annotator "NA"]
[PlyCount "80"]
[EventDate "2019.11.16"]
[EventType "swiss"]
[EventCountry "ESP"]
[SourceTitle "playchess.com"]
[Source "ChessBase"]
[SourceQuality "1"]
[TimeControl "5400+30"]

1. e4 {[%emt 0:00:00]} e6 {[%emt 0:00:00]} 2. d3 {[%emt 0:00:00]} d5 {[%emt 0:00:00]} 3. Nd2 {[%emt 0:00:02]} c5 {[%emt 0:00:00]} 4. Ngf3 {[%emt 0:00:09]} Nc6 {[%emt 0:00:01]} 5. g3 {[%emt 0:00:16]} Nf6 {[%emt 0:00:05]} 6. Bg2 {[%emt 0:00:09]} Be7 {[%emt 0:00:17]} 7. O-O {[%emt 0:00:08]} b6 {[%emt 0:00:13]} 8. Re1 {[%emt 0:00:24]} Bb7 {[%emt 0:00:23]} 9. c3 {[%emt 0:01:45]} h6 {[%emt 0:02:21]} 10. e5 {[%emt 0:07:51]} Nd7 {[%emt 0:00:04]} 11. d4 {[%emt 0:01:26]} Qc7 {[%emt 0:03:08]} 12. a3 {[%emt 0:01:02]} g5 {[%emt 0:04:54]} 13. h3 {[%emt 0:01:47]} O-O-O {[%emt 0:03:07]} 14. b4 {[%emt 0:01:49]} c4 {[%emt 0:05:34]} 15. a4 {[%emt 0:07:49]} Rdg8 {[%emt 0:04:32]} 16. Ba3 {[%emt 0:04:12]} Qd8 {[%emt 0:06:30]} 17. Nh2 {[%emt 0:06:02]} h5 {[%emt 0:01:48]} 18. Qe2 {[%emt 0:03:12]} Kb8 {[%emt 0:06:49]} 19. Nxc4 {[%emt 0:18:38]} dxc4 {[%emt 0:03:16]} 20. Qxc4 {[%emt 0:00:07]} Qc7 {[%emt 0:06:13]} 21. b5 {[%emt 0:00:31]} Bxa3 {[%emt 0:03:14]} 22. bxc6 {[%emt 0:00:11]} Be7 {[%emt 0:02:41]} 23. d5 {[%emt 0:02:55]} Nxe5 {[%emt 0:03:58]} 24. Rxe5 {[%emt 0:02:08]} Qxe5 {[%emt 0:00:32]} 25. cxb7 {[%emt 0:00:08]} Bc5 {[%emt 0:01:37]} 26. Nf1 {[%emt 0:02:54]} Rd8 {[%emt 0:02:54]} 27. dxe6 {[%emt 0:08:34]} fxe6 {[%emt 0:00:39]} 28. Ra2 {[%emt 0:02:26]} Rhf8 {[%emt 0:09:29]} 29. Re2 {[%emt 0:07:35]} Qf6 {[%emt 0:00:29]} 30. Qa2 {[%emt 0:00:21]} h4 {[%emt 0:04:43]} 31. g4 {[%emt 0:09:43]} Rd3 {[%emt 0:02:52]} 32. c4 {[%emt 0:03:48]} Qf4 {[%emt 0:05:09]} 33. Qc2 Ra3 {[%emt 0:02:14]} 34. Rxe6 {[%emt 0:04:06]} Qxf2+ {[%emt 0:03:14]} 35. Qxf2 {[%emt 0:00:07]} Bxf2+ {[%emt 0:00:03]} 36. Kh1 {[%emt 0:00:39]} Rxa4 {[%emt 0:01:07]} 37. Bd5 {[%emt 0:01:20]} Ra1 {[%emt 0:01:27]} 38. Kg2 {[%emt 0:00:07]} Bc5 {[%emt 0:01:35]} 39. Ne3 {[%emt 0:00:46]} Re1 {[%emt 0:00:38]} 40. Nf5 {[%emt 0:00:49]} Rxe6 {[%emt 0:00:14]} 0-1

[Event "84th ESP-ch 2019"]
[Site "Marbella"]
[Date "2019.11.24"]
[Round "9.35"]
[White "Donado-Mazarron Gomez, Miguel"]
[Black "Boutahar Belgasi, Tarik"]
[Result "1-0"]
[ECO "D35"]
[WhiteElo "2171"]
[BlackElo "2027"]
[Annotator "NA"]
[PlyCount "69"]
[EventDate "2019.11.16"]
[EventType "swiss"]
[EventCountry "ESP"]
[SourceTitle "playchess.com"]
[Source "ChessBase"]
[SourceQuality "1"]
[TimeControl "5400+30"]

1. d4 {[%emt 0:00:00]} Nf6 {[%emt 0:04:51]} 2. c4 {[%emt 0:00:00]} e6 {[%emt 0:01:00]} 3. Nc3 {[%emt 0:00:00]} d5 {[%emt 0:00:09]} 4. cxd5 {[%emt 0:00:00]} exd5 {[%emt 0:00:04]} 5. Bg5 {[%emt 0:00:00]} Be7 {[%emt 0:01:47]} 6. e3 {[%emt 0:00:03]} O-O {[%emt 0:00:09]} 7. Bd3 {[%emt 0:00:08]} c6 {[%emt 0:00:54]} 8. Qc2 {[%emt 0:00:06]} Nbd7 {[%emt 0:00:47]} 9. Nge2 {[%emt 0:00:09]} Re8 {[%emt 0:00:12]} 10. O-O {[%emt 0:00:10]} Nf8 {[%emt 0:00:42]} 11. f3 {[%emt 0:00:51]} c5 {[%emt 0:05:04]} 12. Rac1 {[%emt 0:08:56]} h6 {[%emt 0:40:18]} 13. Bh4 {[%emt 0:05:07]} Ne6 {[%emt 0:00:55]} 14. Qd2 {[%emt 0:01:18]} cxd4 {[%emt 0:03:14]} 15. exd4 {[%emt 0:03:34]} Qa5 {[%emt 0:07:28]} 16. Rfe1 {[%emt 0:02:22]} Bd7 {[%emt 0:00:10]} 17. Bb1 {[%emt 0:01:25]} Bc6 {[%emt 0:00:29]} 18. Ng3 {[%emt 0:04:32]} Ne4 {[%emt 0:08:30]} 19. Rxe4 {[%emt 0:10:15]} dxe4 {[%emt 0:00:37]} 20. Bxe7 {[%emt 0:00:26]} Rxe7 {[%emt 0:00:17]} 21. d5 {[%emt 0:02:04]} Bxd5 {[%emt 0:14:00]} 22. Qxd5 {[%emt 0:01:45]} Qb6+ {[%emt 0:00:28]} 23. Kh1 {[%emt 0:00:49]} Nf4 {[%emt 0:00:42]} 24. Qf5 {[%emt 0:10:32]} Qe3 {[%emt 0:02:59]} 25. Rg1 {[%emt 0:05:42]} g6 {[%emt 0:02:29]} 26. Nd5 {[%emt 0:10:44]} Nxd5 {[%emt 0:00:03]} 27. Qxd5 {[%emt 0:00:08]} exf3 {[%emt 0:01:44]} 28. Bxg6 {[%emt 0:05:37]} f2 {[%emt 0:01:58]} 29. Rf1 {[%emt 0:00:18]} Qe6 {[%emt 0:00:02]} 30. Nf5 {[%emt 0:05:32]} Rae8 {[%emt 0:02:27]} 31. Nxe7+ {[%emt 0:04:18]} Qxe7 {[%emt 0:00:19]} 32. Bd3 {[%emt 0:02:30]} Qf6 {[%emt 0:00:40]} 33. g3 {[%emt 0:02:23]} Rd8 {[%emt 0:00:30]} 34. Qf5 {[%emt 0:02:23]} Qc6+ {[%emt 0:00:31]} 35. Be4 {[%emt 0:00:20]} 1-0